bitfinex/quotes_SOLUSD_20240626
["timestamp","ask_amount","ask_price","bid_price","bid_amount"]
[1719434007273,7.3159,136.69,136.62,37.80192266]
[1719434007571,7.3159,136.69,136.63,7.3188]
[1719434007778,25.3564,136.68,136.64,1.46330844]
[1719434008095,7.3164,136.68,136.63,7.3188]
[1719434009980,21.07692425,136.7,136.59,24.4879]
[1719434010291,7.3176,136.66,136.6,7.3201]
[1719434010498,7.317,136.67,136.62,7.3192]
[1719434011093,7.3161,136.69,136.63,7.3187]
[1719434011282,25.3563,136.68,136.63,7.3187]
[1719434011985,7.316,136.69,136.63,7.3187]
[1719434012496,7.3166,136.68,136.62,25.3594]
[1719434013091,7.3166,136.68,136.62,7.3194]
[1719434013290,21.07692425,136.7,136.61,25.9591]
[1719434014774,7.3172,136.67,136.61,25.9591]
[1719434016092,7.3172,136.67,136.62,7.3195]
[1719434017169,7.3164,136.68,136.62,7.3195]
[1719434020200,7.3164,136.68,136.61,36.6793]
[1719434020201,7.3164,136.68,136.63,7.3189]
[1719434026003,262.27902546,136.73,136.63,34.8564]
[1719434026304,7.3149,136.71,136.66,7.3173]
[1719434026500,40.31548542,136.74,136.66,7.3173]
[1719434026695,18.04,136.71,136.67,7.3168]
[1719434027206,7.3138,136.73,136.67,7.3168]
[1719434027379,18.04,136.72,136.67,7.3168]
[1719434027986,7.3138,136.73,136.67,7.3168]
[1719434028302,7.3132,136.74,136.68,15.3009]
[1719434028501,7.3132,136.74,136.68,22.6171]
[1719434028685,18.2817,136.75,136.68,15.3009]
[1719434029083,7.3147,136.71,136.68,15.3009]
[1719434029890,7.3143,136.72,136.68,15.3009]
[1719434030295,7.3138,136.73,136.68,15.3009]
[1719434031587,7.3142,136.72,136.68,15.3009]
[1719434031783,18.04,136.71,136.68,15.3009]
[1719434033008,7.3162,136.69,136.65,16.6491]
[1719434033403,7.3154,136.7,136.65,16.6491]
[1719434033603,7.3154,136.7,136.65,23.967]
[1719434035406,18.04,136.68,136.65,23.967]
[1719434036207,18.04,136.68,136.66,7.3173]
[1719434036409,18.04,136.69,136.66,7.3173]
[1719434037994,18.2831,136.74,136.65,16.6491]
[1719434038196,0.34,136.73,136.65,16.6491]
[1719434039292,7.3161,136.69,136.65,16.6491]
[1719434039496,7.3154,136.7,136.65,23.967]
[1719434039926,7.3149,136.71,136.65,23.967]
[1719434040916,7.3154,136.7,136.65,23.967]
[1719434043917,7.3149,136.71,136.65,23.967]
[1719434044125,7.62882042,136.75,136.66,18.2935]
[1719434044420,7.3144,136.72,136.67,7.3165]
[1719434045619,7.3144,136.72,136.66,25.6107]
[1719434046222,7.3149,136.71,136.66,25.6107]
[1719434046896,7.3144,136.72,136.67,29.0344]
[1719434047117,7.3136,136.74,136.69,7.3157]
[1719434047309,18.04,136.73,136.7,1.46266999]
[1719434048001,7.3136,136.74,136.69,7.3157]
[1719434048205,7.3137,136.73,136.68,25.6069]
[1719434048621,7.3132,136.74,136.69,7.3157]
[1719434049610,7.3126,136.75,136.7,7.3152]
[1719434049808,18.04,136.73,136.7,25.6032]
[1719434050007,7.3122,136.76,136.7,25.6032]
[1719434050211,7.3126,136.75,136.7,25.6032]
[1719434051324,7.3132,136.74,136.7,18.288]
[1719434051532,7.3132,136.74,136.69,7.3154]
[1719434051913,7.3146,136.72,136.67,21.7177]
[1719434052335,7.3146,136.72,136.67,29.0344]
[1719434052527,7.3138,136.73,136.68,7.3162]
[1719434053530,11.14618162,136.74,136.68,18.2906]
[1719434054236,11.14618162,136.74,136.68,25.6064]
[1719434055840,7.3137,136.73,136.68,25.6064]
[1719434057329,3.83268162,136.74,136.69,0.17]
[1719434057641,7.3129,136.75,136.7,7.3149]
[1719434058039,7.3129,136.75,136.69,7.4855]
[1719434058225,7.3132,136.74,136.69,7.4855]
[1719434058737,7.3132,136.74,136.69,7.3155]
[1719434059535,22.11178162,136.77,136.67,21.7177]
[1719434059728,7.3154,136.7,136.67,21.7177]
[1719434060133,7.3149,136.71,136.67,21.7177]
[1719434060437,7.3137,136.73,136.68,7.3163]
[1719434061120,7.3143,136.72,136.67,47.3262]
[1719434061837,18.2822,136.75,136.67,21.7177]
[1719434062028,18.04,136.69,136.67,21.7177]
[1719434064755,18.04,136.69,136.67,21.7177]
[1719434065264,18.04,136.71,136.68,7.3163]
[1719434065839,7.3137,136.73,136.68,7.3163]
[1719434067757,7.3131,136.74,136.69,7.3157]
[1719434067937,18.04,136.72,136.68,25.6065]
[1719434068264,18.04,136.7,136.67,29.0344]
[1719434068462,7.3143,136.72,136.67,21.7177]
[1719434069264,7.3143,136.72,136.67,29.0345]
[1719434069760,7.3138,136.73,136.68,7.3162]
[1719434070064,18.04,136.71,136.68,7.3162]
[1719434071344,7.3133,136.74,136.68,7.3162]
[1719434072252,7.3137,136.73,136.68,7.3162]
[1719434073058,5.82090345,136.76,136.67,39.7577]
[1719434073261,18.04,136.74,136.69,18.2893]
[1719434073439,18.04,136.74,136.7,7.3149]
[1719434073641,18.04,136.74,136.71,7.3146]
[1719434073960,7.312,136.76,136.71,25.6014]
[1719434077962,18.04,136.76,136.72,22.5508]
[1719434078142,11.14448162,136.77,136.72,22.5508]
[1719434078459,18.04,136.76,136.72,22.5508]
[1719434078642,11.14448162,136.77,136.72,22.5508]
[1719434078846,11.14448162,136.77,136.72,29.0107]
[1719434079062,3.83268162,136.77,136.73,7.3136]
[1719434079270,11.14428162,136.77,136.72,29.0109]
[1719434084769,7.3112,136.78,136.73,7.3134]
[1719434085070,7.311,136.79,136.73,18.2841]
[1719434085275,7.3112,136.78,136.73,25.5976]
[1719434085573,7.3112,136.78,136.72,39.7368]
[1719434085574,7.3118,136.77,136.72,39.7368]
[1719434086072,7.3118,136.77,136.73,1.46236417]
[1719434086271,7.3111,136.78,136.73,25.3533]
[1719434088268,7.3111,136.78,136.73,7.3133]
[1719434089076,7.3116,136.77,136.72,65.6757]
[1719434089255,7.3116,136.77,136.72,65.5057]
[1719434089855,7.3116,136.77,136.72,47.4657]
[1719434090961,7.3111,136.78,136.73,7.3136]
[1719434091164,18.04,136.78,136.74,7.3131]
[1719434091768,18.04,136.78,136.72,58.1917]
[1719434091769,3.83268162,136.8,136.72,21.8668]
[1719434091968,254.64964657,136.82,136.75,18.04]
[1719434092177,261.95864657,136.82,136.76,25.5918]
[1719434092769,18.04,136.81,136.76,25.5918]
[1719434092969,18.04,136.81,136.77,7.3114]
[1719434093893,18.04,136.81,136.76,25.5919]
[1719434094066,25.3495,136.81,136.76,25.5919]
[1719434094462,18.04,136.81,136.76,25.5919]
[1719434095573,7.309,136.82,136.77,22.5882]
[1719434095768,18.04,136.81,136.77,22.5882]
[1719434095976,7.309,136.82,136.77,22.5882]
[1719434096368,25.349,136.82,136.77,22.5882]
[1719434097386,7.3085,136.83,136.77,22.5882]
[1719434097571,7.3085,136.83,136.77,29.1199]
[1719434097979,7.3085,136.83,136.78,7.3108]
[1719434098474,7.3089,136.82,136.77,29.1198]
[1719434099588,11.99885502,136.84,136.79,7.3104]
[1719434099979,7.3085,136.83,136.78,25.5879]
[1719434100490,7.3088,136.82,136.78,18.2772]
[1719434100787,7.3085,136.83,136.78,18.2772]
[1719434100993,11.99865502,136.84,136.78,18.2772]
[1719434101174,18.04,136.82,136.78,25.5879]
[1719434106409,25.3489,136.82,136.78,18.2772]
[1719434106589,7.3089,136.82,136.77,29.1199]
[1719434107674,7.3104,136.8,136.75,18.2803]
[1719434108075,7.3104,136.8,136.75,25.5928]
[1719434109213,7.3096,136.81,136.75,25.5928]
[1719434109606,7.3099,136.8,136.75,25.5928]
[1719434110585,19.1288734,136.84,136.75,18.2803]
[1719434110791,7.3095,136.81,136.76,7.312]
[1719434111808,7.309,136.82,136.76,7.312]
[1719434112585,7.3096,136.81,136.76,7.312]
[1719434112809,7.3101,136.8,136.75,25.5927]
[1719434113121,7.3101,136.8,136.75,25.5928]
[1719434117410,7.3094,136.81,136.76,7.3119]
[1719434117612,7.309,136.82,136.76,7.3119]
[1719434117812,7.3084,136.83,136.77,18.2781]
[1719434118013,18.04,136.8,136.78,7.3107]
[1719434118514,18.04,136.8,136.77,25.5894]
[1719434119101,7.3089,136.82,136.77,25.5894]
[1719434119413,7.3095,136.81,136.77,18.2781]
[1719434120306,7.31,136.8,136.75,7.3125]
[1719434121515,7.3095,136.81,136.76,7.312]
[1719434122506,18.2709,136.83,136.74,34.6585]
[1719434122717,7.3107,136.79,136.74,34.6585]
[1719434123115,7.3107,136.79,136.74,41.9712]
[1719434123504,7.3101,136.8,136.74,41.9712]
[1719434123905,7.3105,136.79,136.74,41.9712]
[1719434124127,7.3101,136.8,136.74,41.9712]
[1719434124524,7.3104,136.79,136.74,41.9712]
[1719434124826,7.3101,136.8,136.75,7.3125]
[1719434125330,18.2709,136.83,136.74,34.8285]
[1719434125532,18.2709,136.83,136.75,0.17]
[1719434125823,0.8580734,136.84,136.76,25.5915]
[1719434126128,7.3093,136.82,136.76,25.5915]
[1719434126329,7.3095,136.81,136.76,25.5915]
[1719434127720,19.1275734,136.84,136.74,23.6893]
[1719434127929,0.34,136.83,136.74,23.6893]
[1719434128724,18.2722,136.82,136.74,16.3766]
[1719434128915,18.04,136.77,136.74,16.3766]
[1719434130019,7.3118,136.77,136.74,16.3766]
[1719434130518,7.3118,136.77,136.73,6.6052]
[1719434132729,7.3118,136.77,136.72,7.314]
[1719434132927,18.04,136.73,136.71,16.1884]
[1719434133228,18.04,136.72,136.71,16.1884]
[1719434135311,7.3122,136.76,136.71,23.5031]
[1719434137448,7.3126,136.75,136.71,16.1884]
[1719434142170,7.3132,136.74,136.71,16.1884]
[1719434143543,18.04,136.78,136.71,16.1884]
[1719434144068,7.3132,136.74,136.71,16.1884]
[1719434147359,7.3137,136.73,136.71,16.1884]
[1719434147543,7.3137,136.73,136.69,6.2637]
[1719434147544,7.3141,136.73,136.69,6.2637]
[1719434147746,7.3158,136.69,136.68,15.191]
[1719434147948,7.3158,136.69,136.65,21.3634]
[1719434148348,18.04,136.67,136.65,21.3634]
[1719434148560,18.04,136.67,136.65,28.6813]
[1719434149247,18.04,136.68,136.65,28.6813]
[1719434150268,18.04,136.68,136.66,7.3173]
[1719434152072,7.3149,136.71,136.66,7.3173]
[1719434152247,7.3153,136.7,136.65,28.6812]
[1719434152448,18.04,136.68,136.65,28.6812]
[1719434153481,18.04,136.68,136.66,7.3173]
[1719434154181,7.3149,136.71,136.66,7.3173]
[1719434154357,7.3149,136.71,136.67,1.46326712]
[1719434155278,7.3149,136.71,136.66,7.3173]
[1719434155579,7.3157,136.7,136.65,28.6812]
[1719434157271,7.3148,136.71,136.66,7.3173]
[1719434158982,15.4343,136.71,136.62,22.3898]
[1719434159162,18.6286,136.7,136.62,22.3898]
[1719434159352,18.04,136.63,136.62,16.2126]
[1719434160377,18.04,136.63,136.61,18.299]
[1719434160578,7.318,136.65,136.61,18.299]
[1719434161276,7.3175,136.66,136.61,25.619]
[1719434163876,7.318,136.65,136.61,18.299]
[1719434164862,7.3175,136.66,136.61,25.619]
[1719434165172,7.317,136.67,136.62,7.3194]
[1719434166190,7.316,136.69,136.63,7.3186]
[1719434166375,18.04,136.66,136.63,7.3186]
[1719434166770,18.04,136.65,136.63,7.3186]
[1719434166969,18.04,136.65,136.62,7.3193]
[1719434167167,260.76573199,136.73,136.66,7.317]
[1719434167467,260.76573199,136.73,136.64,6.1772]
[1719434167468,3.83268162,136.72,136.68,7.3161]
[1719434167675,3.83268162,136.72,136.67,25.6082]
[1719434168367,7.3148,136.71,136.66,7.3172]
[1719434168556,7.3148,136.71,136.64,24.4725]
[1719434168557,3.83268162,136.72,136.67,7.3168]
[1719434168764,3.83268162,136.72,136.67,7.3167]
[1719434168965,3.83268162,136.72,136.66,18.2923]
[1719434169179,18.04,136.68,136.65,7.3177]
[1719434169372,7.3158,136.69,136.64,13.4956]
[1719434169778,7.3156,136.7,136.64,13.4956]
[1719434169979,18.04,136.66,136.64,13.4956]
[1719434170265,7.3156,136.7,136.65,7.3179]
[1719434170792,18.04,136.67,136.65,7.3179]
[1719434170967,18.04,136.67,136.65,8.78124121]
[1719434171471,25.3549,136.71,136.65,7.3179]
[1719434171679,25.3549,136.71,136.66,7.3172]
[1719434172079,7.3149,136.71,136.66,7.3172]
[1719434172289,18.04,136.68,136.66,7.3172]
[1719434172767,18.04,136.68,136.65,18.2943]
[1719434172967,7.3164,136.68,136.64,6.1772]
[1719434173281,18.2884,136.7,136.62,34.5104]
[1719434173788,7.3175,136.66,136.62,34.5104]
[1719434174388,7.317,136.67,136.62,34.5104]
[1719434174686,7.317,136.67,136.62,41.8299]
[1719434174883,7.3165,136.68,136.63,7.319]
[1719434177192,7.3169,136.67,136.62,41.8299]
[1719434178871,36.4972,136.71,136.62,34.5104]
[1719434179072,18.04,136.71,136.63,0.17]
[1719434180396,7.3142,136.72,136.67,7.3168]
[1719434180773,68.91185921,136.75,136.68,18.2906]
[1719434180774,53.47755921,136.75,136.68,18.2906]
[1719434180978,7.3135,136.74,136.69,7.3157]
[1719434181287,18.04,136.72,136.68,25.6067]
[1719434182595,7.3135,136.74,136.68,25.6067]
[1719434182774,3.83268162,136.75,136.68,18.2906]
[1719434182986,18.04,136.69,136.67,15.1134]
[1719434183295,18.2824,136.75,136.67,15.1134]
[1719434183498,7.3146,136.72,136.67,15.1134]
[1719434185307,7.3146,136.72,136.67,22.4302]
[1719434188622,7.3148,136.71,136.67,15.1134]
[1719434188775,7.3153,136.7,136.67,15.1134]
[1719434189279,7.3158,136.69,136.67,15.1134]
[1719434189793,7.3158,136.69,136.66,6.219]
[1719434190984,7.3155,136.7,136.66,6.219]
[1719434191195,36.04,136.72,136.66,6.219]
[1719434191196,7.3148,136.71,136.66,6.219]
[1719434191389,36.04,136.72,136.67,7.3167]
[1719434191390,43.3543,136.72,136.67,7.3167]
[1719434191700,43.3543,136.72,136.66,31.8293]
[1719434191701,7.3147,136.71,136.66,31.8293]
[1719434196623,7.3153,136.7,136.66,24.5121]
[1719434199508,36.04,136.72,136.66,24.5121]
[1719434200691,43.3543,136.72,136.68,7.3163]
[1719434200890,36.04,136.72,136.68,7.3163]
[1719434201098,43.3542,136.72,136.67,7.3167]
[1719434202115,7.3142,136.72,136.67,7.3167]
[1719434204015,7.3147,136.71,136.67,7.3167]
[1719434204199,7.3154,136.7,136.66,24.5121]
[1719434204403,7.3158,136.69,136.66,6.219]
[1719434205394,7.3155,136.7,136.66,6.219]
[1719434205591,18.02,136.68,136.66,6.219]
[1719434207220,7.3175,136.66,136.64,15.6911]
[1719434207811,7.3175,136.66,136.63,6.3637]
[1719434208208,36.3073,136.71,136.63,6.3637]
[1719434208209,7.317,136.67,136.63,6.3637]
[1719434208402,7.3165,136.68,136.63,13.6827]
[1719434208718,7.3159,136.69,136.64,8.15050911]
[1719434208899,7.3159,136.69,136.64,7.3182]
[1719434209607,7.3159,136.69,136.64,25.6143]
[1719434213509,5.77428416,136.73,136.65,15.6171]
[1719434213711,7.3143,136.72,136.67,7.3168]
[1719434214334,7.3148,136.71,136.66,25.6105]
[1719434214826,7.3143,136.72,136.67,7.3168]
[1719434215027,7.3148,136.71,136.66,25.6105]
[1719434217237,18.02,136.69,136.66,18.2933]
[1719434217739,18.02,136.69,136.65,23.1049]
[1719434218129,25.3358,136.69,136.65,15.6171]
[1719434218331,18.02,136.68,136.65,15.6171]
[1719434218531,42.54742079,136.74,136.63,6.3637]
[1719434218723,0.34,136.73,136.63,6.3637]
[1719434218918,18.02,136.67,136.65,7.3178]
[1719434219138,18.02,136.68,136.64,25.6138]
[1719434219441,18.02,136.68,136.65,7.3179]
[1719434221947,11.4767323,136.74,136.66,34.8298]
[1719434222140,18.02,136.72,136.67,7.3165]
[1719434222745,18.02,136.72,136.68,7.3163]
[1719434223946,18.02,136.72,136.67,7.3166]
[1719434224344,7.3148,136.71,136.66,60.167]
[1719434225044,25.3348,136.71,136.66,42.147]
[1719434225443,18.02,136.71,136.67,7.3168]
[1719434228145,18.02,136.71,136.66,34.8298]
[1719434228146,18.02,136.71,136.68,7.3162]
[1719434229248,18.02,136.71,136.67,7.3167]
[1719434231630,18.2829,136.74,136.66,34.8298]
[1719434232035,7.315,136.71,136.66,42.1471]
[1719434234354,7.3143,136.72,136.67,7.3168]
[1719434235740,7.3156,136.7,136.65,7.3176]
[1719434240953,15.5661,136.71,136.64,18.2962]
[1719434241143,18.02,136.65,136.61,25.6189]
[1719434241338,18.02,136.64,136.61,25.6189]
[1719434241937,18.02,136.64,136.62,7.3194]
[1719434242352,18.29,136.69,136.6,13.5724]
[1719434242855,7.3182,136.65,136.6,13.5724]
[1719434243234,7.3176,136.66,136.61,7.32]
[1719434243755,18.29,136.69,136.59,33.3068]
[1719434243945,7.319,136.63,136.59,18.3029]
[1719434244146,7.319,136.63,136.58,13.5377]
[1719434244352,7.319,136.63,136.58,7.3216]
[1719434248480,15.4744,136.66,136.55,29.2964]
[1719434248766,7.321,136.6,136.55,21.9736]
[1719434249168,7.321,136.6,136.55,29.2965]
[1719434249341,7.321,136.6,136.55,7.3229]
[1719434249546,18.2977,136.63,136.53,18.3101]
[1719434249849,18.02,136.55,136.52,23.5185]
[1719434250053,18.02,136.55,136.52,16.1938]
[1719434250448,18.02,136.54,136.52,16.1938]
[1719434251858,18.02,136.54,136.52,23.5186]
[1719434253063,7.3224,136.57,136.52,23.5186]
[1719434253668,7.3224,136.57,136.52,16.1938]
[1719434254167,7.3228,136.56,136.51,6.0449]
[1719434254470,7.3228,136.56,136.51,13.3701]
[1719434256050,18.02,136.55,136.51,13.3701]
[1719434257172,7.3228,136.56,136.51,13.3701]
[1719434257375,7.3224,136.57,136.51,13.3701]
[1719434257951,18.3021,136.6,136.51,13.3701]
[1719434258247,7.3224,136.57,136.52,7.3248]
[1719434259069,7.3219,136.58,136.52,7.3248]
[1719434263465,24.06024522,136.6,136.52,7.3248]
[1719434263466,7.3222,136.57,136.52,7.3248]
[1719434269185,7.3228,136.56,136.51,13.3701]
[1719434270362,7.3224,136.57,136.52,7.3248]
[1719434271579,7.3219,136.58,136.53,7.3243]
[1719434271773,7.3219,136.58,136.53,22.5693]
[1719434273764,7.3223,136.57,136.53,15.245]
[1719434273966,18.02,136.56,136.53,15.245]
[1719434277568,7.3229,136.56,136.53,15.245]
[1719434277872,25.3429,136.56,136.53,15.245]
[1719434278081,18.02,136.56,136.53,15.245]
[1719434278387,25.3429,136.56,136.53,15.245]
[1719434280590,7.3229,136.56,136.53,15.245]
[1719434280782,7.3224,136.57,136.53,15.245]
[1719434282379,7.3231,136.56,136.53,15.245]
[1719434282578,7.3224,136.57,136.53,15.245]
[1719434282976,7.3216,136.59,136.54,7.3236]
[1719434283186,18.02,136.58,136.54,7.3236]
[1719434283379,18.02,136.57,136.54,7.3236]
[1719434284275,18.02,136.57,136.53,40.8796]
[1719434284476,33.3852,136.64,136.55,18.3078]
[1719434284688,18.02,136.6,136.56,7.3224]
[1719434284870,51.4052,136.64,136.55,18.3078]
[1719434285608,7.3212,136.59,136.55,18.3078]
[1719434286180,7.3217,136.58,136.53,15.245]
[1719434286496,18.02,136.56,136.53,15.245]
[1719434286870,18.3024,136.6,136.53,22.5691]
[1719434286871,7.3219,136.58,136.53,22.5691]
[1719434287592,18.2987,136.63,136.53,22.5691]
[1719434287593,7.3212,136.59,136.54,7.3237]
[1719434290304,7.3217,136.58,136.53,22.5692]
[1719434293190,69.7019,136.64,136.53,15.245]
[1719434293393,7.3234,136.55,136.53,15.245]
[1719434293704,7.3229,136.56,136.53,15.245]
[1719434298703,7.3224,136.57,136.53,15.245]
[1719434299109,25.92124035,136.62,136.53,22.5693]
[1719434299110,7.3219,136.58,136.53,22.5693]
[1719434299407,18.02,136.57,136.53,22.5693]
[1719434299910,18.02,136.57,136.53,40.8801]
[1719434302912,7.3218,136.58,136.53,40.8801]
[1719434304525,7.3225,136.57,136.53,15.245]
[1719434305301,7.62114035,136.62,136.53,33.265]
[1719434305498,18.6385,136.63,136.53,15.245]
[1719434305704,18.6385,136.63,136.53,33.265]
[1719434305705,18.02,136.58,136.53,33.265]
[1719434305906,7.3215,136.59,136.54,7.3238]
[1719434306112,18.02,136.58,136.54,7.3238]
[1719434307021,7.3215,136.59,136.54,7.3238]
[1719434310697,18.2985,136.63,136.56,7.3227]
[1719434310903,33.1079,136.64,136.56,25.6292]
[1719434311102,7.3205,136.61,136.56,25.6292]
[1719434311321,7.3206,136.6,136.56,18.3066]
[1719434312525,7.3211,136.59,136.55,6.4141]
[1719434313526,7.3208,136.6,136.55,13.7373]
[1719434314122,7.3202,136.61,136.56,7.3227]
[1719434314330,25.3406,136.6,136.56,7.3227]
[1719434314630,7.3202,136.61,136.56,7.3227]
[1719434316735,7.3206,136.6,136.55,32.215]
[1719434316915,7.3206,136.6,136.56,0.17]
[1719434318411,7.3206,136.6,136.56,7.4927]
[1719434318613,7.3203,136.61,136.56,7.4927]
[1719434319335,7.3203,136.61,136.57,1.46412046]
[1719434319540,7.3203,136.61,136.56,7.4927]
[1719434319719,7.3207,136.6,136.56,7.4927]
[1719434320612,3.83268162,136.63,136.57,34.6841]
[1719434320821,21.85268162,136.63,136.59,25.6237]
[1719434321119,25.3382,136.65,136.6,25.3404]
[1719434321636,47.13282321,136.67,136.62,34.2289]
[1719434321852,7.3159,136.69,136.64,31.9266]
[1719434322345,3.83268162,136.7,136.65,7.3177]
[1719434322346,11.14798162,136.7,136.65,7.3177]
[1719434323211,11.14798162,136.7,136.65,25.3377]
[1719434323419,3.83268162,136.7,136.66,7.3172]
[1719434323839,11.14788162,136.7,136.65,18.02]
[1719434324131,3.83268162,136.7,136.66,25.3374]
[1719434324336,7.3149,136.71,136.67,7.3168]
[1719434324725,7.3143,136.72,136.68,7.3163]
[1719434324929,3.83268162,136.74,136.68,7.3163]
[1719434325325,7.3142,136.72,136.67,25.3366]
[1719434325726,7.3137,136.73,136.68,7.3162]
[1719434325929,25.3337,136.73,136.68,22.3931]
[1719434326139,7.3137,136.73,136.68,40.4131]
[1719434326447,18.02,136.73,136.69,7.4856]
[1719434326626,7.3136,136.73,136.69,0.17]
[1719434327023,7.3136,136.73,136.69,0.34]
[1719434327837,7.3142,136.72,136.68,33.3672]
[1719434328034,7.3152,136.71,136.68,15.0769]
[1719434331735,7.3154,136.7,136.65,41.3163]
[1719434332163,7.3149,136.71,136.66,7.3173]
[1719434332863,22.11558162,136.74,136.67,7.3168]
[1719434332864,7.3142,136.72,136.67,7.3168]
[1719434333063,7.3138,136.73,136.68,7.3163]
[1719434334257,3.83268162,136.74,136.67,18.2909]
[1719434335356,7.3142,136.72,136.68,7.316]
[1719434335537,7.3142,136.72,136.67,25.6075]
[1719434336828,7.315,136.71,136.67,18.2909]
[1719434337265,7.3144,136.72,136.67,25.6077]
[1719434338055,7.3149,136.71,136.67,18.2909]
[1719434338262,7.3149,136.71,136.66,7.4871]
[1719434338464,7.3153,136.7,136.66,0.17]
[1719434338963,7.3153,136.7,136.66,7.4873]
[1719434339340,7.315,136.71,136.66,7.4873]
[1719434340654,7.315,136.71,136.67,7.3167]
[1719434340857,3.83268162,136.73,136.65,52.0191]
[1719434340858,18.02,136.69,136.65,33.9991]
[1719434341171,25.3358,136.69,136.65,41.3169]
[1719434341471,18.02,136.69,136.65,41.3169]
[1719434342037,18.02,136.69,136.66,1.4613723]
[1719434342264,7.3154,136.7,136.66,1.4613723]
[1719434342750,7.3158,136.69,136.65,41.3169]
[1719434343644,7.3154,136.7,136.65,41.3169]
[1719434343839,18.2859,136.72,136.65,15.7043]
[1719434344251,7.3169,136.67,136.64,6.3124]
[1719434344451,7.3166,136.68,136.64,6.3124]
[1719434345467,18.2856,136.72,136.64,24.6085]
[1719434345712,18.02,136.67,136.64,24.6085]
[1719434345864,7.3159,136.69,136.64,24.6085]
[1719434346167,7.3159,136.69,136.64,31.9267]
[1719434347159,7.3159,136.69,136.65,7.3179]
[1719434347364,25.90655454,136.74,136.66,7.3173]
[1719434347543,18.02,136.7,136.67,7.3166]
[1719434348967,25.3348,136.71,136.67,7.3166]
[1719434349355,7.3148,136.71,136.67,7.3166]
[1719434349785,7.3141,136.73,136.68,7.3161]
[1719434350792,7.3143,136.72,136.68,7.3161]
[1719434354107,280.4521632,136.78,136.69,24.4983]
[1719434354272,7.3123,136.76,136.71,7.3146]
[1719434354479,7.3126,136.75,136.71,7.3146]
[1719434354678,7.3126,136.75,136.7,18.2877]
[1719434354679,7.3121,136.76,136.72,7.3141]
[1719434354978,25.3321,136.76,136.72,7.3141]
[1719434355610,7.3121,136.76,136.71,7.3147]
[1719434355906,6.02872947,136.78,136.71,7.3147]
[1719434355907,7.3126,136.75,136.71,7.3147]
[1719434356270,7.3126,136.75,136.71,6.8147]
[1719434356503,7.3132,136.74,136.7,18.2877]
[1719434357481,7.3132,136.74,136.7,25.6028]
[1719434357906,7.3128,136.75,136.7,25.6028]
[1719434360911,7.3128,136.75,136.71,7.3145]
[1719434362106,7.3122,136.76,136.71,7.3145]
[1719434362810,7.3118,136.77,136.72,7.3141]
[1719434362992,18.02,136.75,136.72,7.3141]
[1719434363396,7.3118,136.77,136.72,7.3141]
[1719434364104,18.02,136.75,136.71,25.6001]
[1719434364307,7.3127,136.75,136.71,18.2855]
[1719434365921,7.3133,136.74,136.7,7.315]
[1719434366296,7.3128,136.75,136.7,7.315]
[1719434367206,7.3128,136.75,136.7,25.603]
[1719434367509,7.3128,136.75,136.71,7.3145]
[1719434372618,7.3128,136.75,136.7,25.603]
[1719434372820,50.13431215,136.8,136.69,6.4783]
[1719434373030,7.3144,136.72,136.69,6.4783]